Workbook

Sheet меню
A1: Школа | B1: МАОУ СОШ № 72 | E1: Отд./корп | I1: День | J1: 2024-11-19
A3: Прием пищи | B3: Раздел | C3: № рец. | D3: Блюдо | E3: Выход, г | F3: Цена | G3: Калорийность | H3: Белки | I3: Жиры | J3: Углеводы
A4: Завтрак | C4: 54-1о-2020 | D4: Омлет натуральный | E4: 150 | F4: 38.37 | G4: 225.5 | H4: 12.7 | I4: 18 | J4: 3.3
A5: 1-4 классы | C5: доп | D5: Батон йодированный | E5: 30 | F5: 3.87 | G5: 82.5 | H5: 2.31 | I5: 0.81 | J5: 16.14
C6: доп | D6: Хлеб Чусовской | E6: 20 | F6: 2.19 | G6: 39.1 | H6: 1.3 | I6: 0.2 | J6: 7.9
C7: 54-2гн-2020 | D7: Чай с сахаром | E7: 200 | F7: 1 | G7: 26.8 | H7: 0.2 | I7: 0 | J7: 6.4
C8: доп | D8: Масло сливочное | E8: 5 | F8: 3.2 | G8: 37.5 | H8: 0.03 | I8: 4.12 | J8: 0.05
B9: фрукты | C9: доп | D9: Яблоко свежее | E9: 200 | F9: 27.1 | G9: 88.78 | H9: 0.78 | I9: 0.78 | J9: 19.56
D10: Итого | F10: =F4+F5+F6+F7+F8+F9 -> 75.73 | G10: =G4+G5+G6+G7+G8+G9 -> 500.18 | H10: =H4+H5+H6+H7+H8+H9 -> 17.32 | I10: =I4+I5+I6+I7+I8+I9 -> 23.91 | J10: =J4+J5+J6+J7+J8+J9 -> 53.35
A12: Обед | C12: 54-18с-2020 | D12: Суп свекольник со сметаной | E12: 200 | F12: 9.22 | G12: 88.3 | H12: 1.8 | I12: 4.28 | J12: 10.66
A13: 1-4 классы | C13: 54-14р-2020 | D13: Котлета рыбная Любительская(минтай) | E13: 90 | F13: 35.49 | G13: 112.3 | H13: 12.8 | I13: 4.1 | J13: 6.1
C14: 54-6г-2020 | D14: Рис отварной | E14: 150 | F14: 9.4 | G14: 203.5 | H14: 3.6 | I14: 4.8 | J14: 36.4
C15: 54-2хн-2020 | D15: Компот из кураги | E15: 200 | F15: 5.31 | G15: 66.9 | H15: 1 | I15: 0.1 | J15: 15.7
D16: Хлеб пшеничный | E16: 60 | F16: 5.91 | G16: 140.6 | H16: 4.6 | I16: 0.5 | J16: 29.5
D17: Хлеб ржаной | E17: 30 | F17: 3.28 | G17: 58.65 | H17: 1.95 | I17: 0.3 | J17: 11.85
C18: 54-4соус-2020 | D18: Соус сметанный натуральный | E18: 20 | F18: 4.72 | G18: 37.22 | H18: 0.58 | I18: 3.3 | J18: 1.32
C19: 54-2з-2020 | D19: Огурец в нарезке | E19: 70 | F19: 13.29 | G19: 8.5 | H19: 0.5 | I19: 0.1 | J19: 1.5
D20: Итого | F20: =F12+F13+F14+F15+F16+F17+F18+F19 -> 86.62 | G20: =G12+G13+G14+G15+G16+G17+G18+G19 -> 715.97 | H20: =H12+H13+H14+H15+H16+H17+H18+H19 -> 26.83 | I20: =I12+I13+I14+I15+I16+I17+I18+I19 -> 17.48 | J20: =J12+J13+J14+J15+J16+J17+J18+J19 -> 113.03
A23: Прием пищи | B23: Раздел | C23: № рец. | D23: Блюдо | E23: Выход, г | F23: Цена | G23: Калорийность | H23: Белки | I23: Жиры | J23: Углеводы
A24: Завтрак | C24: 54-1о-2020 | D24: Омлет натуральный | E24: 150 | F24: 38.37 | G24: 225.5 | H24: 12.7 | I24: 18 | J24: 3.3
A25: 1-4 классы | C25: доп | D25: Батон йодированный | E25: 30 | F25: 3.87 | G25: 82.5 | H25: 2.31 | I25: 0.81 | J25: 16.14
A26: с огр.здоровья | C26: доп | D26: Хлеб Чусовской | E26: 20 | F26: 2.19 | G26: 39.1 | H26: 1.3 | I26: 0.2 | J26: 7.9
C27: 54-2гн-2020 | D27: Чай с сахаром | E27: 200 | F27: 1 | G27: 26.8 | H27: 0.2 | I27: 0 | J27: 6.4
C28: доп | D28: Масло сливочное | E28: 5 | F28: 3.2 | G28: 37.5 | H28: 0.03 | I28: 4.12 | J28: 0.05
B29: фрукты | C29: доп | D29: Яблоко свежее | E29: 200 | F29: 27.1 | G29: 88.78 | H29: 0.78 | I29: 0.78 | J29: 19.56
D30: Итого | F30: =F24+F25+F26+F27+F28+F29 -> 75.73 | G30: 500.18 | H30: 17.32 | I30: 23.91 | J30: 53.35
A32: Обед | C32: 54-18с-2020 | D32: Суп свекольник со сметаной | E32: 200 | F32: 9.22 | G32: 88.3 | H32: 1.8 | I32: 4.28 | J32: 10.66
A33: 1-4 классы | C33: 54-14р-2020 | D33: Котлета рыбная Любительская(минтай) | E33: 90 | F33: 35.49 | G33: 112.3 | H33: 12.8 | I33: 4.1 | J33: 6.1
A34: с огр.здоровья | C34: 54-6г-2020 | D34: Рис отварной | E34: 150 | F34: 9.4 | G34: 203.5 | H34: 3.6 | I34: 4.8 | J34: 36.4
C35: 54-2хн-2020 | D35: Компот из кураги | E35: 200 | F35: 5.31 | G35: 66.9 | H35: 1 | I35: 0.1 | J35: 15.7
D36: Хлеб пшеничный | E36: 60 | F36: 5.91 | G36: 140.6 | H36: 4.6 | I36: 0.5 | J36: 29.5
D37: Хлеб ржаной | E37: 30 | F37: 3.28 | G37: 58.65 | H37: 1.95 | I37: 0.3 | J37: 11.85
C38: 54-4соус-2020 | D38: Соус сметанный натуральный | E38: 20 | F38: 4.72 | G38: 37.22 | H38: 0.58 | I38: 3.3 | J38: 1.32
C39: 54-2з-2020 | D39: Огурец в нарезке | E39: 70 | F39: 13.29 | G39: 8.5 | H39: 0.5 | I39: 0.1 | J39: 1.5
D40: Итого | F40: =F32+F33+F34+F35+F36+F37+F38+F39 -> 86.62 | G40: 715.97 | H40: 26.83 | I40: 17.48 | J40: 113.03
